Workbook

Sheet Variablen (hidden)
A1: Variablen
B4: Umsatzeinbruch | C4: Erstattungssatz
B5: 70% | C5: 100%
B6: 50% | C6: 60%
B7: 30% | C7: 40%
B8: Solo | C8: 25% | D8: 5000
B10: Eigenkapitalzuschuss | D10: 3 | E10: 4 | F10: 5
D11: 0.25 | E11: 0.35 | F11: 0.4
A13: Förderung Personenunternehmen NRW Monatlich | B13: 1,000.00 €
A16: Textvariabeln
A17: Die Förderfähigkeit ist aufgrund eines Umsatzrückgangs in den Monaten
A18: unabhängig von einer bundesweiten Schließung gegeben.
A19: Für den Monat Dezember 2020 wurde ein Umsatzrückgang von mindestens 30% festgestellt. Sollte das Unternehmen von einer bundesweiten Schließung betroffen sein, erhöht sich der maximale Fixkostenzuschss auf 500.000 €.
A21: Die Förderung nach tatsächlichen Kosten ist günstiger.
A22: Die Förderung durch die Betriebskostenpauschale für Soloselbständige ist günstiger.

Sheet Version_Kennwort
B1: Überbrückungshilfe Phase 3 Hinweise und Impressum
B3: 1. Versionshinweis
B4: Version 2021.18.1
B5: Stand: 24.11.2021 - berücksicht werden die FAQ mit Stand 21. November 2021
B6: Vorliegen einer aktuelleren Version in der NWB Datenbank prüfen.
B7: NWB DOI XAAAH-68524
B9: 2. Eingabefelder
B10: Die Eingabefelder sind gelb hinterlegt.
B12: 3. Schreibschutz / Kennwort
B14: Die Arbeitsblätter sind - abgesehen von den Eingabefeldern - mit einem Schreibschutz belegt.
B16: Das Kennwort für die Aufhebung des Schreibschutzes lautet:
B17: nwbverlag
B19: Bitte beachten Sie, dass sich eine Veränderung der Gestaltung des Formulars auch
B20: auf die Richtigkeit der Berechnungsformeln auswirken können.
B22: 4. Autor
B23: Dieses Berechnungsprogramm wird inhaltlich betreut von Olaf Stein.
B25: 5. Haftungsausschluss / AGB
B26: Der NWB Verlag übernimmt keine Gewähr und keine Haftung für die Richtigkeit der Ergebnisse.
B27: Im Übrigen gelten die die aktuellen AGB der NWB Datenbank und des NWB Verlages.
B29: 6. Impressum
B30: NWB Verlag GmbH & Co. KG
B31: AG Bochum HRA 5124
B32: Eschstr. 22 · 44629 Herne
B33: Fon 02323.141-900 · Fax 02323.141-123
B34: E-Mail: info@nwb.de
B35: Internet: www.nwb.de
B37: Alle Rechte vorbehalten. Vervielfältigungen nur mit Zustimmung des Verlages.

Sheet Stammdaten
B1: Überbrückungshilfe Phase 3 Stammdaten
B3: 1. Adresse und Gründungsdatum
B5: Mandantennummer
B6: Name des Betriebes | L6: Ja
B7: Straße und Hausnr. | L7: Nein
B8: PLZ / Ort
B9: Gründungsdatum | C9: 2019-01-01
B10: Auswahl Vergleichsumsatz | C10: 1. | D10: Vergleichsumsatz = 1. Durchschnittlicher Monatsumsatz des Jahres 2019 2. Durchschnittlicher Monatsumsatz der beiden Vorkrisenmonate Januar und Februar 2020 3. Durchschnittlicher Monatsumsatz in den Monaten Juni bis September 2020 4. Monatlicher Durchschnittswert des geschätzten Jahresumsatzes 2020, der bei der erstmaligen steuerlichen Erfassung beim zuständigen Finanzamt im „Fragebogen zur steuerlichen Erfassung“ angegeben wurde. Hierfür gilt eine maximale Höhe der Überbrückungshilfe von insgesamt 1.800.000 Euro. 5. Verbundene Unternehmen: Kumulierter Umsatz. Hierfür gilt eine maximale Höhe der Überbrückungshilfe von insgesamt 3.000.000 Euro. 6. KMU: Durchschnittlicher Monatsumsatz des Jahres 2019 7. Wahlrecht begründete Härtefälle: alternative Vergleichszeiträume zur Ermittlung des Umsatzrückgangs im Jahr 2019 | L10: 1. | M10: Durchschnittlicher Monatsumsatz des Jahres 2019
L11: =IF(Gründungsdatum>=DATE(2019,1,1),"2.","-") -> 2. | M11: Durchschnittlicher Monatsumsatz der beiden Vorkrisenmonate Januar und Februar 2020
L12: =IF(Gründungsdatum>=DATE(2019,1,1),"3.","-") -> 3. | M12: =IF(Gründungsdatum>=DATE(2019,1,1),"Durchschnittlicher Monatsumsatz in den Monaten Juni bis September 2020","Bitte Eingaben im Blatt 'Stammdaten' überprüfen.") -> Durchschnittlicher Monatsumsatz in den Monaten Juni bis September 2020 | N12: Monatlicher Durchschnittswert des geschätzten Jahresumsatzes 2020, der bei der erstmaligen steuerlichen Erfassung beim zuständigen Finanzamt im „Fragebogen zur steuerlichen Erfassung“ angegeben wurde. Hierfür gilt eine maximale Höhe der Überbrückungshilfe von insgesamt 1.800.000 Euro.
B13: 2. Art der Berechnung | L13: =IF(Gründungsdatum>=DATE(2019,1,1),"4.","-") -> 4. | M13: =IF(Gründungsdatum>=DATE(2019,1,1),+N12,"Bitte Eingaben im Blatt 'Stammdaten' überprüfen.") -> Monatlicher Durchschnittswert des geschätzten Jahresumsatzes 2020, der bei der erstmaligen steuerlichen Erfassung beim zuständigen Finanzamt im „Fragebogen zur steuerlichen Erfassung“ angegeben wurde. Hierfür gilt eine maximale Höhe der Überbrückungshilfe von insgesamt 1.800.000 Euro.
L14: =IF(Gründungsdatum>=DATE(2019,1,1),"5.","-") -> 5. | M14: =IF(Gründungsdatum>=DATE(2019,1,1),"Verbundene Unternehmen: Kumulierter Umsatz. Hierfür gilt eine maximale Höhe der Überbrückungshilfe von insgesamt 3.000.000 Euro.","Bitte Eingaben im Blatt 'Stammdaten' überprüfen.") -> Verbundene Unternehmen: Kumulierter Umsatz. Hierfür gilt eine maximale Höhe der Überbrückungshilfe von insgesamt 3.000.000 Euro.
B15: Umsatzschätzung bei Antragstellung 1 | L15: 6. | M15: KMU: Durchschnittlicher Monatsumsatz des Jahres 2019
B16: oder | C16: 1 | L16: 7. | M16: Wahlrecht begründete Härtefälle: Alternative Vergleichszeiträume zur Ermittlung des Umsatzrückgangs im Jahr 2019
B17: abschließende Antragstellung = Ist-Werte 2 | L17: trifft nicht zu | M17: Umsatz Monat Vorjahr

Sheet Antrag und Erstattungssatz
B1: Überbrückungshilfe Phase 3 Erstattungssatz
C4: Nov | D4: Dez | E4: Jan | F4: Feb | G4: März | H4: April | I4: Mai | J4: Juni
B5: Umsatz Jahr 2020/2021 | C5: 0.00 | D5: 9,000.00 | E5: 0.00 | F5: 4,000.00 | G5: 1,000.00 | H5: 2,000.00 | I5: 1,500.00 | J5: 1,500.00
B6: =VLOOKUP(Stammdaten!C10,Stammdaten!L10:M17,2,TRUE) -> Durchschnittlicher Monatsumsatz des Jahres 2019 | C6: 0.00 | D6: 10,000.00 | E6: 1,000.00 | F6: 10,000.00 | G6: 5,000.00 | H6: 1,000.00 | I6: 7,000.00 | J6: 7,000.00
B7: Auswahl Vergleichsumsatz siehe Blatt "Stammdaten"
B8: Umsatzrückgang absolut | C8: =+C5-C6 -> 0.00 | D8: -1,000.00 | E8: -1,000.00 | F8: -6,000.00 | G8: -4,000.00 | H8: 1,000.00 | I8: -5,500.00 | J8: -5,500.00
B9: Umsatzrückgang in % | C9: =IF(C5-C6=0,0,((-C8+0.001)/(C6+0.001))) -> 0.00% | D9: =IF(D5-D6=0,0,((-D8+0.001)/(D6+0.001))) -> 10.00% | E9: 100.00% | F9: 60.00% | G9: 80.00% | H9: -100.00% | I9: 78.57% | J9: 78.57%
B11: Antragsberechtigung ist gegeben: | C11: =+IF(C9>=30%,"Ja","Nein") -> Nein | D11: =+IF(D9>=30%,"Ja","Nein") -> Nein | E11: Ja | F11: Ja | G11: Ja | H11: Nein | I11: Ja | J11: Ja
B13: Erstattungssatz | C13: =+IF(Umsatzrückgang_in<=Variablen!B7,0,IF(Umsatzrückgang_in<=Variablen!B6,Variablen!C7,IF(Umsatzrückgang_in<=Variablen!B5,Variablen!C6,Variablen!C5))) -> 0.00% | D13: 0.00% | E13: 100.00% | F13: 60.00% | G13: 100.00% | H13: 0.00% | I13: 100.00% | J13: 100.00%
B15: Die Ersattungssätze lauten: | C15: Umsatzeinbruch | D15: Erstattungssatz
C16: >= 70% | D16: 100%
C17: >= 50% | D17: 60%
C18: >= 30% | D18: 40%
B20: Bitte beachten: Ggf. muss ein bereits gestellter Antrag auf Nov.-/ Dez.-Hilfe zugunsten eines höher beförderten Antrages auf Nov.-/ Dez.-Hilfe PLUS im Rahmen der Überbrückungshilfe 3 zurückgezogen werden. Dieses Vorgehen ist jeweils individuell zu prüfen.

Sheet EK-Zuschuss
B1: Überbrückungshilfe Phase 3 Eigenkapitalzuschuss
B3: Daten aus Blatt "Antrag und Erstattungssatz"
C4: Nov | D4: Dez | E4: Jan | F4: Feb | G4: März | H4: April | I4: Mai | J4: Juni
B5: ='Antrag und Erstattungssatz '!B5 -> Umsatz Jahr 2020/2021 | C5: ='Antrag und Erstattungssatz '!C5 -> 0.00 | D5: ='Antrag und Erstattungssatz '!D5 -> 9,000.00 | E5: ='Antrag und Erstattungssatz '!E5 -> 0.00 | F5: ='Antrag und Erstattungssatz '!F5 -> 4,000.00 | G5: ='Antrag und Erstattungssatz '!G5 -> 1,000.00 | H5: ='Antrag und Erstattungssatz '!H5 -> 2,000.00 | I5: ='Antrag und Erstattungssatz '!I5 -> 1,500.00 | J5: ='Antrag und Erstattungssatz '!J5 -> 1,500.00
B6: ='Antrag und Erstattungssatz '!B6 -> Durchschnittlicher Monatsumsatz des Jahres 2019 | C6: ='Antrag und Erstattungssatz '!C6 -> 0.00 | D6: ='Antrag und Erstattungssatz '!D6 -> 10,000.00 | E6: ='Antrag und Erstattungssatz '!E6 -> 1,000.00 | F6: ='Antrag und Erstattungssatz '!F6 -> 10,000.00 | G6: ='Antrag und Erstattungssatz '!G6 -> 5,000.00 | H6: ='Antrag und Erstattungssatz '!H6 -> 1,000.00 | I6: ='Antrag und Erstattungssatz '!I6 -> 7,000.00 | J6: ='Antrag und Erstattungssatz '!J6 -> 7,000.00
B8: Umsatzrückgang absolut | C8: ='Antrag und Erstattungssatz '!C8 -> 0.00 | D8: ='Antrag und Erstattungssatz '!D8 -> -1,000.00 | E8: ='Antrag und Erstattungssatz '!E8 -> -1,000.00 | F8: ='Antrag und Erstattungssatz '!F8 -> -6,000.00 | G8: ='Antrag und Erstattungssatz '!G8 -> -4,000.00 | H8: ='Antrag und Erstattungssatz '!H8 -> 1,000.00 | I8: ='Antrag und Erstattungssatz '!I8 -> -5,500.00 | J8: ='Antrag und Erstattungssatz '!J8 -> -5,500.00 | N8: Nov | O8: Dez | P8: Jan | Q8: Feb | R8: März | S8: Apr | T8: Mai | U8: Juni
B9: Umsatzrückgang in % (wenn Nov.-/Dez.-Hilfe erhalten: 50%) | C9: =IF(C10="Ja",0.5,'Antrag und Erstattungssatz '!C9) -> 50.00% | D9: =IF(D10="Ja",0.5,'Antrag und Erstattungssatz '!D9) -> 50.00% | E9: ='Antrag und Erstattungssatz '!E9 -> 100.00% | F9: ='Antrag und Erstattungssatz '!F9 -> 60.00% | G9: ='Antrag und Erstattungssatz '!G9 -> 80.00% | H9: ='Antrag und Erstattungssatz '!H9 -> -100.00% | I9: ='Antrag und Erstattungssatz '!I9 -> 78.57% | J9: ='Antrag und Erstattungssatz '!J9 -> 78.57% | N9: =IF(C9>=50%,1,0) -> 1 | O9: =IF(D9>=50%,1,0) -> 1 | P9: 1 | Q9: 1 | R9: 1 | S9: 0 | T9: 1 | U9: 1
B10: November-/Dezemberhilfe erhalten? | C10: Ja | D10: Ja | L10: Ja
L11: Nein
B12: erforderlicher Umsatzrückgang gegeben: | C12: =IF(C9>=50%,"Ja","Nein") -> Ja | D12: =IF(D9>=50%,"Ja","Nein") -> Ja | E12: Ja | F12: Ja | G12: Ja | H12: Nein | I12: Ja | J12: Ja
B14: Eigenkapitalzuschuss: Förderungssatz | C14: - | D14: - | E14: =IF(E12="Ja",IF(P14>=Variablen!$F$10,Variablen!$F$11,IF(P14=Variablen!$E$10,Variablen!$E$11,IF(P14=Variablen!$D$10,Variablen!$D$11,0))),0) -> 25.00% | F14: =IF(F12="Ja",IF(Q14>=Variablen!$F$10,Variablen!$F$11,IF(Q14=Variablen!$E$10,Variablen!$E$11,IF(Q14=Variablen!$D$10,Variablen!$D$11,0))),0) -> 35.00% | G14: =IF(G12="Ja",IF(R14>=Variablen!$F$10,Variablen!$F$11,IF(R14=Variablen!$E$10,Variablen!$E$11,IF(R14=Variablen!$D$10,Variablen!$D$11,0))),0) -> 40.00% | H14: =IF(H12="Ja",IF(S14>=Variablen!$F$10,Variablen!$F$11,IF(S14=Variablen!$E$10,Variablen!$E$11,IF(S14=Variablen!$D$10,Variablen!$D$11,0))),0) -> 0.00% | I14: =IF(I12="Ja",IF(T14>=Variablen!$F$10,Variablen!$F$11,IF(T14=Variablen!$E$10,Variablen!$E$11,IF(T14=Variablen!$D$10,Variablen!$D$11,0))),0) -> 40.00% | J14: =IF(J12="Ja",IF(U14>=Variablen!$F$10,Variablen!$F$11,IF(U14=Variablen!$E$10,Variablen!$E$11,IF(U14=Variablen!$D$10,Variablen!$D$11,0))),0) -> 40.00% | P14: =COUNTIF(C12:E12,"Ja") -> 3 | Q14: =COUNTIF(C12:F12,"Ja") -> 4 | R14: =COUNTIF(C12:G12,"Ja") -> 5 | S14: =COUNTIF(C12:H12,"Ja") -> 5 | T14: =COUNTIF(C12:I12,"Ja") -> 6 | U14: =COUNTIF(C12:J12,"Ja") -> 7

Sheet Kosten und Förderung
B1: Überbrückungshilfe Phase 3 Kosten und Förderung
B4: 1. Berücksichtigungsfähige Kosten
D5: 2020-11-01 | E5: 2020-12-01 | F5: 2021-01-01 | G5: 2021-02-01 | H5: 2021-03-01 | I5: 2021-04-01 | J5: 2021-05-01 | K5: 2021-06-01
B6: 1. | C6: Mieten und Pachten | D6: 100.00 | E6: 1,000.00 | F6: 100.00 | G6: 100.00 | H6: 100.00 | I6: 100.00 | J6: 100.00 | K6: 100.00
B7: 2. | C7: weitere Mietkosten
B8: 3. | C8: Zinsaufwendungen für Kredite und Darlehen
B9: 4. | C9: Abschreibungen auf Wirtschaftsgüter des AV - näheres siehe Anhang 2 der FAQ | D9: 400.00 | E9: 200.00 | F9: 400.00 | G9: 400.00 | H9: 400.00 | I9: 400.00 | J9: 400.00 | K9: 400.00
B10: 4a. | C10: - davon zu berücksichtigen: 50% | D10: =+Abschreibungen*0.5 -> 200.00 | E10: 100.00 | F10: 200.00 | G10: 200.00 | H10: 200.00 | I10: 200.00 | J10: 200.00 | K10: 200.00
B11: 5. | C11: Finanzierungskostenanteil von Leasingraten
B12: 6. | C12: Ausgaben für notwendige Instandhaltung, Wartung und Einlagerung von Anlagevermögen und gemieteten und geleasten Vermögensgegenständen, einschließlich EDV
B13: 7. | C13: Ausgaben für Elektrizität, Wasser, Heizung, Reinigung
B14: 8. | C14: Grundsteuern
B15: 9. | C15: Betriebliche Lizenzgebühren
B16: 10. | C16: Versicherungen, Abonnements und andere feste Ausgaben
B17: 11. | C17: Kosten für Steuerberater, Wirtschaftsprüfer oder vereidigte Buchprüfer, die im Rahmen der Beantragung der Corona-Überbrückungshilfe Phase 3 anfallen. | D17: 100.00 | E17: 100.00 | F17: 200.00 | G17: 200.00 | H17: 200.00 | I17: 200.00 | J17: 200.00 | K17: 200.00
B18: 12. | C18: Personalaufwendungen gegeben (ja/nein) | D18: Ja | E18: Ja | F18: Ja | G18: Ja | H18: Ja | I18: Ja | J18: Ja | K18: Nein | N18: Ja
B19: 12a. | C19: (werden pauschal mit 20 % der Fixkosten Nr. 1 - 11 berücksichtigt) | D19: =IF(D18="Ja",SUM(D6:D8,D10:D13,D14:D17)*0.2,0) -> 80.00 | E19: 240.00 | F19: 100.00 | G19: 100.00 | H19: 100.00 | I19: 100.00 | J19: 100.00 | K19: 0.00 | N19: Nein
B20: 13. | C20: Kosten für Auszubildende
B21: 14. | C21: bauliche Modernisierungs-, Renovierungs- oder Umbaumaßnahmen für Hygienemaßnahmen; Investitionen in Digitalisierung (z.B. Online-Shop); Summe aus 14a. Und 14b. Vgl. Anhang 4 der FAQ | D21: =D23+D25 -> 39,672.13 | E21: =E23+E25 -> 10,327.87 | F21: 0.00 | G21: 20,000.00 | H21: 0.00 | I21: 0.00 | J21: 0.00 | K21: 0.00
B22: 14a. | C22: bauliche Modernisierungs-, Renovierungs- oder Umbaumaßnahmen für Hygienemaßnahmen Vgl. Anhang 4 der FAQ | D22: 30,000.00 | E22: 10,000.00 | G22: 30,000.00
B23: 14a. | C23: - davon zu berücksichtigen: max. 20.000 € monatlich | D23: =IF(D22>20000,20000,D22) -> 20,000.00 | E23: =IF(E22>20000,20000,E22) -> 10,000.00 | F23: 0.00 | G23: 20,000.00 | H23: 0.00 | I23: 0.00 | J23: 0.00 | K23: 0.00
B24: 14b. | C24: Investitionen in Digitalisierung im Zeitraum März 2020 - Juni 2021 Vgl. Anhang 4 der FAQ | D24: 30,000.00 | E24: 500.00 | N24: =SUM(D24:K24) -> 30,500.00 € | O24: =IF(D24>0,1,0) -> 1 | P24: =IF(E25>0,1,0) -> 1 | Q24: 0 | R24: 0 | S24: 0 | T24: 0 | U24: 0 | V24: 0
B25: 14b. | C25: - davon zu berücksichtigen: 20.000 € | D25: =IFERROR(D24/N24*N25,0) -> 19,672.13 | E25: =IFERROR(E24/N24*N25,0) -> 327.87 | F25: =IFERROR(F24/N24*N25,0) -> 0.00 | G25: =IFERROR(G24/N24*N25,0) -> 0.00 | H25: =IFERROR(H24/N24*N25,0) -> 0.00 | I25: =IFERROR(I24/N24*N25,0) -> 0.00 | J25: =IFERROR(J24/N24*N25,0) -> 0.00 | K25: =IFERROR(K24/N24*N25,0) -> 0.00 | N25: =IF(N24>20000,20000,N24) -> 20,000.00 €
B26: 15. | C26: Marketing Maximal in Höhe der entsprechenden Ausgaben im Jahre 2019. Bei Unternehmen, die zwischen dem 1. Januar 2019 und dem 30. April 2020 gegründet wurden: Marketing- und Werbekosten maximal in Höhe der entsprechenden Ausgaben für zwölf Monate in einem beliebigen Zeitraum seit Gründung.
B27: 16. | C27: Ausgaben für Hygienemaßnahmen - Anschaffung mobiler Luftreiniger bspw. durch Hepafilter oder UVC-Licht und die Nachrüstung bereits bestehender stationärer Luftreiniger durch Hepafilter oder UVC-Licht, Maßnahmen zur temporären Verlagerung des Geschäftsbetriebs in Außenbereiche. - Förderfähige Hygienemaßnahmen umfassen u. a. Einmalartikel zur Umsetzung von Hygienemaßnahmen, wie Schnelltests, Desinfektionsmitteln und Schutzmasken. - Schulung von Mitarbeiter/innen zu Hygienemaßnahmen - Besucher-/Kundenzählgeräte - Zur Berücksichtigung der besonderen Corona-Situation sind Hygiene-maßnahmen einschließlich investiver Maßnahmen entgegen der sonst gültigen Vorgaben auch förderfähig, wenn sie nach dem 1. Januar 2021 begründet sind. Vgl. Anhang 4 der FAQ
B28: 17. | C28: Reisebranche: 1. Zurückgezahlte bzw. ausgebliebene Provisionen für Reisebüros oder Margen für Reiseveranstalter für Pauschalreisen, die - vor dem 18.03.2020 gebucht, - seit dem 18.03.2020 im Zusammenhang mit Corona-bedingten Reisewarnungen des Auswärtigen Amtes bzw. innerdeutschen Reiseverboten oder temporären Grenzschließungen storniert (Rücktritt vom Reisevertrag) und - die im Förderzeitraum November 2020 bis Juni 2021 von den Reisenden angetreten worden wären. 2. bei zusätzlich erstattungsfähigen Kosten für Zeitraum 01.03.2020 bis 31.12.2020 und Umsatzrückgang > 30%: Personalkostenpauschale i.H.v. 50% 3. Anschubhilfe in Höhe von 20 % der Lohnsumme, die im entsprechenden Referenzmonat 2019 angefallen wäre. Die max. Gesamtförderhöhe dieser Anschubhilfe beträgt 2 Mio. €.
B29: 18. | C29: Veranstaltungs- und Kulturbranche: Ausfall- und Vorbereitungskosten - wenn Umsatzrückgang >30% oder - die bis zu 12 Monate vor Beginn des geplanten Veranstaltungsdatums angefallen sind; weiteres siehe Anhang 1 der FAQ
B30: 19. | C30: Einzelhandel, Großhandel und Hersteller: Wertverlust für verderbliche Ware und Saisonware - im Vergleichsmonat 2019 muss mindestens 70% des Umsatz aus Stationärem Handel erzielt worden sein - vgl. auch Anhang 2 der FAQ
B31: 20. | C31: Kosten für Unternehmen der Pyrotechnikindustrie - für Dezember 2020 muss ein Umsatzeinbruch von mind. 80% vorliegen
B32: 21. | C32: Pyrotechnikindustrie: Lager- und Transportkosten - für Dezember 2020 muss ein Umsatzeinbruch von mind. 80% vorliegen
B35: 2. Förderfähige Kosten, Erstattung und Förderung
D36: 2020-11-01 | E36: 2020-12-01 | F36: 2021-01-01 | G36: 2021-02-01 | H36: 2021-03-01 | I36: 2021-04-01 | J36: 2021-05-01 | K36: 2021-06-01
B37: Förderfähige Kosten | D37: =+SUM(D26:D32,D19:D20,D21,D14:D17,D10:D13,D6:D8) -> 40,152.13 | E37: =+SUM(E26:E32,E19:E20,E21,E14:E17,E10:E13,E6:E8) -> 11,767.87 | F37: 600.00 | G37: 20,600.00 | H37: 600.00 | I37: 600.00 | J37: =+SUM(J26:J32,J19:J20,J21,J14:J17,J10:J13,J6:J8) -> 600.00 | K37: 500.00
B38: Erstattungssatz | D38: ='Antrag und Erstattungssatz '!C13 -> 0.00% | E38: ='Antrag und Erstattungssatz '!D13 -> 0.00% | F38: ='Antrag und Erstattungssatz '!E13 -> 100.00% | G38: ='Antrag und Erstattungssatz '!F13 -> 60.00% | H38: ='Antrag und Erstattungssatz '!G13 -> 100.00% | I38: ='Antrag und Erstattungssatz '!H13 -> 0.00% | J38: ='Antrag und Erstattungssatz '!I13 -> 100.00% | K38: ='Antrag und Erstattungssatz '!J13 -> 100.00%
B39: Erstattung gem. maßgeblichem Erstattungssatz | D39: =+Erstattungssatz*Förderfähige_Kosten -> 0.00 | E39: 0.00 | F39: 600.00 | G39: 12,360.00 | H39: 600.00 | I39: 0.00 | J39: 600.00 | K39: 500.00
B40: Zwischensumme mögliche Förderung | D40: =SUM(D39:D39) -> 0.00 | E40: 0.00 | F40: 600.00 | G40: 12,360.00 | H40: 600.00 | I40: 0.00 | J40: 600.00 | K40: 500.00 | L40: =SUM(Förderung_gesamt) -> 14,660.00
B41: Förderung gesamt | D41: =IF(Stammdaten!C10="4.",MIN(+D40,1800000),IF(Stammdaten!C10="5.",MIN(+D40,3000000),MIN(+D40,1500000))) -> 0.00 | E41: =IF(Stammdaten!C10="4.",MIN(+E40,1800000),IF(Stammdaten!C10="5.",MIN(+E40,3000000),MIN(+E40,1500000))) -> 0.00 | F41: =IF(Stammdaten!C10="4.",MIN(+F40,1800000),IF(Stammdaten!C10="5.",MIN(+F40,3000000),MIN(+F40,1500000))) -> 600.00 | G41: =IF(Stammdaten!C10="4.",MIN(+G40,1800000),IF(Stammdaten!C10="5.",MIN(+G40,3000000),MIN(+G40,1500000))) -> 12,360.00 | H41: =IF(Stammdaten!C10="4.",MIN(+H40,1800000),IF(Stammdaten!C10="5.",MIN(+H40,3000000),MIN(+H40,1500000))) -> 600.00 | I41: =IF(Stammdaten!C10="4.",MIN(+I40,1800000),IF(Stammdaten!C10="5.",MIN(+I40,3000000),MIN(+I40,1500000))) -> 0.00 | J41: =IF(Stammdaten!C10="4.",MIN(+J40,1800000),IF(Stammdaten!C10="5.",MIN(+J40,3000000),MIN(+J40,1500000))) -> 600.00 | K41: =IF(Stammdaten!C10="4.",MIN(+K40,1800000),IF(Stammdaten!C10="5.",MIN(+K40,3000000),MIN(+K40,1500000))) -> 500.00 | L41: =SUM(D41:K41) -> 14,660.00
B43: Eigenkapitalzuschuss
B44: EK-Zuschuss: Förderungssatz | D44: - | E44: - | F44: ='EK-Zuschuss'!E14 -> 25.00% | G44: ='EK-Zuschuss'!F14 -> 35.00% | H44: ='EK-Zuschuss'!G14 -> 40.00% | I44: ='EK-Zuschuss'!H14 -> 0.00% | J44: ='EK-Zuschuss'!I14 -> 40.00% | K44: ='EK-Zuschuss'!J14 -> 40.00%
B45: EK-Zuschuss: Betrag | F45: =(F6+F7+F8+F10+F11+F12+F13+F14+F15+F16+F17)*F44*F38 -> 125.00 | G45: =(G6+G7+G8+G10+G11+G12+G13+G14+G15+G16+G17)*G44*G38 -> 105.00 | H45: 200.00 | I45: 0.00 | J45: 200.00 | K45: 200.00 | L45: =SUM(F45:K45) -> 830.00

Sheet Günstigerprüfung_Neustart-Hilfe
B1: Überbrückungshilfe Phase 3 Günstigerprüfung Neustart-Hilfe
Q3: -
B4: Soloselbständiger oder Ein-Personen-KapG (max. Neustart-Hilfe 7.500 €) = 1 | F4: 2 | G4: Bitte ggf. Antragsberechtigung gem. FAQ prüfen (siehe Arbeitsblatt "Rechtliche Grundlagen") | Q4: 1
B5: Mehr-Personen-KapG oder Genossenschaft (max. Neustart-Hilfe 30.000 €) = 2 | Q5: 2
B7: =+IF(F4=1,"Vergleich: Summe maximaler Förderbetrag vs. 50% des Vergleichsumsatz, maximal 7.500 Euro.",IF(F4=2,"Vergleich: Summe maximaler Förderbetrag vs. 50% des Vergleichsumsatz, maximal 30.000 Euro.","Diese Rechnung ist nicht relevant.")) -> Vergleich: Summe maximaler Förderbetrag vs. 50% des Vergleichsumsatz, maximal 30.000 Euro.
B9: Berechnung der einmaligen Betriebskostenpauschale (Neustart-Hilfe):
Q10: Monat | R10: Zählung | S10: Ja
C11: 2019-01-01 | D11: 2019-02-01 | E11: 2019-03-01 | F11: 2019-04-01 | G11: 2019-05-01 | H11: 2019-06-01 | I11: 2019-07-01 | J11: 2019-08-01 | K11: 2019-09-01 | L11: 2019-10-01 | M11: 2019-11-01 | N11: 2019-12-01 | O11: Summe | Q11: Jan | R11: =IF(C12="Ja",1,0) -> 0 | S11: Nein
B12: Im Monat bereits gegründet? | C12: Nein | D12: Nein | E12: Nein | F12: Ja | G12: Ja | H12: Ja | I12: Ja | J12: Ja | K12: Ja | L12: Ja | M12: Ja | N12: Ja | Q12: Feb | R12: =IF(D12="Ja",1,0) -> 0
B13: Umsatz | C13: 10,000.00 | D13: 1,000.00 | E13: 1,000.00 | F13: 5,000.00 | G13: 1,000.00 | H13: 20,000.00 | I13: 1,000.00 | J13: 1,000.00 | K13: 1,000.00 | L13: 1,000.00 | M13: 1,000.00 | N13: 1,000.00 | Q13: März | R13: =IF(E12="Ja",1,0) -> 0
B14: berücksichtigt wird | C14: =IF(C12="Ja",C13,0) -> 0.00 | D14: =IF(D12="Ja",D13,0) -> 0.00 | E14: 0.00 | F14: 5,000.00 | G14: 1,000.00 | H14: 20,000.00 | I14: 1,000.00 | J14: 1,000.00 | K14: 1,000.00 | L14: 1,000.00 | M14: 1,000.00 | N14: 1,000.00 | O14: =SUM(C14:N14) -> 32,000.00 | Q14: April | R14: =IF(F12="Ja",1,0) -> 1
Q15: Mai | R15: =IF(G12="Ja",1,0) -> 1
H16: = Summe Umsatz | K16: =O14 -> 32,000.00 € | Q16: Juni | R16: =IF(H12="Ja",1,0) -> 1
H17: = Summe Öffnungsmonate | K17: =R24 -> 9 | Q17: Juli | R17: =IF(I12="Ja",1,0) -> 1
H18: = Summe / Öffnungsmonate * 12 Monate | K18: =O14/R24*12 -> 42,666.67 € | L18: = Vergleichsumsatz (nach Öffnungsmonaten gewichteter Umsatz) | Q18: August | R18: =IF(J12="Ja",1,0) -> 1
H19: = Vergleichsumsatz /2 = | K19: =+K18/2 -> 21,333.33 € | L19: = Referenzumsatz
H20: =IF(F4=1,"davon 50%; max. 7.500 €",IF(F4=2,"davon 50%; max. 30.000 €","kein Ansatz")) -> davon 50%; max. 30.000 € | K20: =IF(F4=1,IF(K18*0.25>7500,7500,K18*0.25),IF(F4=2,IF(K18*0.25>30000,30000,K18*0.25),0)) -> 10,666.67 € | L20: = einmalige Betriebskostenpauschale (Neustart-Hilfe) | Q20: Sept | R20: =IF(K12="Ja",1,0) -> 1
Q21: Okt | R21: =IF(L12="Ja",1,0) -> 1
Q22: Nov | R22: =IF(M12="Ja",1,0) -> 1
B23: Prüfung: Antrag Neustart-Hilfe (Betriebskostenpauschale) vs. tatsächliche Kosten | Q23: Dez | R23: =IF(N12="Ja",1,0) -> 1
C24: Einmalige Betriebskostenpauschale (Neustart-Hilfe) | J24: =K20 -> 10,666.67 € | Q24: Summe | R24: =SUM(R11:R23) -> 9
C25: Maximaler Förderbetrag Stufe 2 (siehe Blatt "Kosten und Förderung") | J25: =+'Kosten und Förderung'!L40+'Kosten und Förderung'!L45 -> 15,490.00 €
C27: =IF(F4=1,IF(J24>J25,"Neustart-Hilfe sollte beantragt werden.","Förderung nach tatsächlichen Kosten sollte beantragt werden."),IF(F4=2,IF(J24>J25,"Neustart-Hilfe sollte beantragt werden.","Förderung nach tatsächlichen Kosten sollte beantragt werden."),"Da keine Neustart-Hilfe beantragt werden kann wird auf die Regelförderung verwiesen.")) -> Förderung nach tatsächlichen Kosten sollte beantragt werden.

Sheet Zusammenfassung
B1: Überbrückungshilfe Phase 3 Zusammenfassung
B4: 1. Antragsberechtiger
B5: =Stammdaten!B5 -> Mandantennummer | C5: =+Stammdaten!C5 -> 0
B6: =Stammdaten!B6 -> Name des Betriebes | C6: =+Stammdaten!C6 -> 0
B7: =Stammdaten!B7 -> Straße und Hausnr. | C7: =+Stammdaten!C7 -> 0
B8: =Stammdaten!B8 -> PLZ / Ort | C8: =+Stammdaten!C8 -> 0
B10: =+IF(Gründungsdatum<= DATEVALUE("30.4.2020"),IF(Gründungsdatum>= DATEVALUE("1.8.2019"),"Bitte anders Berechnungstool verwenden!",_xlfn.CONCAT("Gründungsdatum ",TEXT(Gründungsdatum,"-> TT.MM.JJJJ"))),"Unternehmen ist nicht antragsberechtigt.") -> Gründungsdatum -> 01.01.2019
B11: =IF(Stammdaten!C10="5.","Verbundenes Unternehmen? -> Ja","Verbundenes Unternehmen? -> Nein") -> Verbundenes Unternehmen? -> Nein
B13: 2. Förderfähigkeit
C14: 2020-11-01 | D14: 2020-12-01 | E14: 2021-01-01 | F14: 2021-02-01 | G14: 2021-03-01 | H14: 2021-04-01 | I14: 2021-05-01 | J14: 2021-06-01
C15: =+'Antrag und Erstattungssatz '!C11 -> Nein | D15: =+'Antrag und Erstattungssatz '!D11 -> Nein | E15: =+'Antrag und Erstattungssatz '!E11 -> Ja | F15: =+'Antrag und Erstattungssatz '!F11 -> Ja | G15: =+'Antrag und Erstattungssatz '!G11 -> Ja | H15: =+'Antrag und Erstattungssatz '!H11 -> Nein | I15: =+'Antrag und Erstattungssatz '!I11 -> Ja | J15: =+'Antrag und Erstattungssatz '!J11 -> Ja
B16: 3. Erstattungssätze und Förderung
C17: 2020-11-01 | D17: 2020-12-01 | E17: 2021-01-01 | F17: 2021-02-01 | G17: 2021-03-01 | H17: 2021-04-01 | I17: 2021-05-01 | J17: 2021-06-01
B18: Erstattungssatz | C18: =+Erstattungssatz -> 0% | D18: 0% | E18: 100% | F18: 60% | G18: 100% | H18: 0% | I18: 100% | J18: 100%
B20: ='Kosten und Förderung'!B37 -> Förderfähige Kosten | C20: =+'Kosten und Förderung'!D37 -> 40,152.13 € | D20: =+'Kosten und Förderung'!E37 -> 11,767.87 € | E20: =+'Kosten und Förderung'!F37 -> 600.00 € | F20: =+'Kosten und Förderung'!G37 -> 20,600.00 € | G20: =+'Kosten und Förderung'!H37 -> 600.00 € | H20: =+'Kosten und Förderung'!I37 -> 600.00 € | I20: =+'Kosten und Förderung'!J37 -> 600.00 € | J20: =+'Kosten und Förderung'!K37 -> 500.00 €
B21: ='Kosten und Förderung'!B39 -> Erstattung gem. maßgeblichem Erstattungssatz | C21: =+'Kosten und Förderung'!D39 -> 0.00 € | D21: =+'Kosten und Förderung'!E39 -> 0.00 € | E21: =+'Kosten und Förderung'!F39 -> 600.00 € | F21: =+'Kosten und Förderung'!G39 -> 12,360.00 € | G21: =+'Kosten und Förderung'!H39 -> 600.00 € | H21: =+'Kosten und Förderung'!I39 -> 0.00 € | I21: =+'Kosten und Förderung'!J39 -> 600.00 € | J21: =+'Kosten und Förderung'!K39 -> 500.00 €
B22: Maximaler Förderbetrag | C22: ='Kosten und Förderung'!D40 -> 0.00 € | D22: ='Kosten und Förderung'!E40 -> 0.00 € | E22: ='Kosten und Förderung'!F40 -> 600.00 € | F22: ='Kosten und Förderung'!G40 -> 12,360.00 € | G22: ='Kosten und Förderung'!H40 -> 600.00 € | H22: ='Kosten und Förderung'!I40 -> 0.00 € | I22: ='Kosten und Förderung'!J40 -> 600.00 € | J22: ='Kosten und Förderung'!K40 -> 500.00 €
B23: Summe Förderung bis Juni 2021 | D23: =SUM(C22:J22) -> 14,660.00 €
B25: Eigenkapitalzuschuss | C25: - | D25: - | E25: ='Kosten und Förderung'!F45 -> 125.00 € | F25: ='Kosten und Förderung'!G45 -> 105.00 € | G25: ='Kosten und Förderung'!H45 -> 200.00 € | H25: ='Kosten und Förderung'!I45 -> 0.00 € | I25: ='Kosten und Förderung'!J45 -> 200.00 € | J25: ='Kosten und Förderung'!K45 -> 200.00 €
B26: Summe Förderung bis Juni 2021 inkl. EK-Zuschuss | D26: =D23+E25+F25+G25+H25+I25+J25 -> 15,490.00 €
B28: =IF('Günstigerprüfung_Neustart-Hilfe'!F4=2,"5. Günstigerprüfung Neustart-Hilfe",IF('Günstigerprüfung_Neustart-Hilfe'!F4=1,"5. Günstigerprüfung Neustart-Hilfe","")) -> 5. Günstigerprüfung Neustart-Hilfe
B29: =IF('Günstigerprüfung_Neustart-Hilfe'!F4=1,"Summe Vergleichsumsatz 2019",IF('Günstigerprüfung_Neustart-Hilfe'!F4=2,"Summe Vergleichsumsatz 2019","")) -> Summe Vergleichsumsatz 2019 | G29: =IF('Günstigerprüfung_Neustart-Hilfe'!F4=1,'Günstigerprüfung_Neustart-Hilfe'!K18,IF('Günstigerprüfung_Neustart-Hilfe'!F4=2,'Günstigerprüfung_Neustart-Hilfe'!K18,"")) -> 42,666.67 €
B30: =IF('Günstigerprüfung_Neustart-Hilfe'!F4=1,"Förderung: Betriebskostenpauschale = 50% des Referenzumsatz, Maximal 7.500 €",IF('Günstigerprüfung_Neustart-Hilfe'!F4=2,"Förderung: Betriebskostenpauschale = 50% des Referenzumsatz, maximal 30.000 €","")) -> Förderung: Betriebskostenpauschale = 50% des Referenzumsatz, maximal 30.000 € | G30: =IF('Günstigerprüfung_Neustart-Hilfe'!F4=1,'Günstigerprüfung_Neustart-Hilfe'!K20,IF('Günstigerprüfung_Neustart-Hilfe'!F4=2,'Günstigerprüfung_Neustart-Hilfe'!K20,"")) -> 10,666.67 €
B31: =IF('Günstigerprüfung_Neustart-Hilfe'!F4=1,"Im Vergleich die Förderung nach tatsächlichen Kosten",IF('Günstigerprüfung_Neustart-Hilfe'!F4=2,"Im Vergleich zur Förderung nach tatsächlichen Kosten","")) -> Im Vergleich zur Förderung nach tatsächlichen Kosten | G31: =IF('Günstigerprüfung_Neustart-Hilfe'!F4=1,D26,IF('Günstigerprüfung_Neustart-Hilfe'!F4=2,D26,"")) -> 15,490.00 €
B33: =IF('Günstigerprüfung_Neustart-Hilfe'!F4=1,IF(G30>G31,text_Förderung_Pauschal,text_förderung_tatsächlich),IF('Günstigerprüfung_Neustart-Hilfe'!F4=2,IF(G30>G31,text_Förderung_Pauschal,text_förderung_tatsächlich),"")) -> Die Förderung nach tatsächlichen Kosten ist günstiger.

Sheet Rechtliche Grundlagen
B1: Überbrückungshilfe Phase 3 Rechtliche Grundlagen
